[Event "Božićni turnir u VaraždinskimToplicama 26.12.2025."]
[Site "Varazdinske Toplice, Croatia"]
[Date "2025.12.26"]
[Round "9.14"]
[White "Veres, Vedran"]
[Black "Bezjak, Robert"]
[Result "1-0"]
[TimeControl "10"]
[WhiteFideId "79330134"]
[BlackFideId "79310630"]
[WhiteElo "1930"]
[BlackElo "1707"]

1. e4 {[%clk 00:09:58]} {[%emt 00:00:03]} c5 {[%clk 00:09:59]} 2. g3 {[%clk
00:09:57]} d6 {[%clk 00:09:56]} {[%emt 00:00:03]} 3. Bg2 {[%clk 00:09:55]}
{[%emt 00:00:03]} Nc6 {[%clk 00:09:53]} {[%emt 00:00:02]} 4. Ne2 {[%clk
00:09:53]} {[%emt 00:00:01]} Bd7 {[%clk 00:09:51]} {[%emt 00:00:02]} 5. O-O
{[%clk 00:09:50]} {[%emt 00:00:03]} Nf6 {[%clk 00:09:47]} {[%emt 00:00:07]} 6.
c3 {[%clk 00:09:47]} e5 {[%clk 00:09:43]} {[%emt 00:00:04]} 7. d4 {[%clk
00:09:18]} {[%emt 00:00:28]} cxd4 {[%clk 00:09:40]} {[%emt 00:00:04]} 8. cxd4
{[%clk 00:09:16]} {[%emt 00:00:02]} Be7 {[%clk 00:09:25]} {[%emt 00:00:14]} 9.
d5 {[%clk 00:08:51]} {[%emt 00:00:26]} Na5 {[%clk 00:08:59]} {[%emt 00:00:26]}
10. b4 {[%clk 00:07:59]} {[%emt 00:00:53]} Nc4 {[%clk 00:08:56]} {[%emt
00:00:03]} 11. Qb3 {[%clk 00:07:41]} {[%emt 00:00:17]} Rc8 {[%clk 00:08:50]}
{[%emt 00:00:06]} 12. Nd2 {[%clk 00:07:04]} {[%emt 00:00:37]} b5 {[%clk
00:08:37]} {[%emt 00:00:13]} 13. Nc3 {[%clk 00:06:49]} {[%emt 00:00:14]} O-O
{[%clk 00:08:25]} {[%emt 00:00:13]} 14. Re1 {[%clk 00:05:54]} {[%emt 00:00:54]}
a6 {[%clk 00:08:18]} {[%emt 00:00:08]} 15. a4 {[%clk 00:05:40]} {[%emt
00:00:13]} Qc7 {[%clk 00:08:13]} {[%emt 00:00:05]} 16. axb5 {[%clk 00:05:18]}
{[%emt 00:00:23]} Bxb5 {[%clk 00:08:03]} {[%emt 00:00:10]} 17. Nxb5 {[%clk
00:05:09]} {[%emt 00:00:09]} axb5 {[%clk 00:08:01]} {[%emt 00:00:02]} 18. Nxc4
{[%clk 00:04:57]} {[%emt 00:00:11]} bxc4 {[%clk 00:07:51]} {[%emt 00:00:11]} 19.
Qc3 {[%clk 00:04:44]} {[%emt 00:00:13]} Rb8 {[%clk 00:07:21]} {[%emt 00:00:30]}
20. Bd2 {[%clk 00:04:38]} {[%emt 00:00:06]} Nd7 {[%clk 00:07:08]} {[%emt
00:00:13]} 21. Ra6 {[%clk 00:04:14]} {[%emt 00:00:24]} Ra8 {[%clk 00:06:52]}
{[%emt 00:00:16]} 22. Rea1 {[%clk 00:04:12]} Nb6 {[%clk 00:06:47]} {[%emt
00:00:06]} 23. Be3 {[%clk 00:03:56]} {[%emt 00:00:16]} Rxa6 {[%clk 00:06:36]}
{[%emt 00:00:12]} 24. Rxa6 {[%clk 00:03:54]} {[%emt 00:00:02]} Rb8 {[%clk
00:06:33]} {[%emt 00:00:01]} 25. Bxb6 {[%clk 00:03:49]} {[%emt 00:00:06]} Rxb6
{[%clk 00:06:32]} {[%emt 00:00:02]} 26. Rxb6 {[%clk 00:03:43]} {[%emt
00:00:06]} Qxb6 {[%emt 00:00:01]} 27. Qxc4 {[%clk 00:03:41]} {[%emt 00:00:01]}
Qb7 {[%clk 00:06:20]} {[%emt 00:00:11]} 28. b5 {[%clk 00:03:39]} {[%emt
00:00:02]} Bd8 {[%clk 00:06:19]} {[%emt 00:00:01]} 29. Qc6 {[%clk 00:03:37]}
{[%emt 00:00:02]} Qxc6 {[%clk 00:06:13]} {[%emt 00:00:06]} 30. dxc6 {[%clk
00:03:34]} {[%emt 00:00:03]} Bb6 {[%clk 00:06:11]} {[%emt 00:00:02]} 31. Kf1
{[%clk 00:03:31]} {[%emt 00:00:03]} f6 {[%clk 00:06:08]} {[%emt 00:00:03]} 32.
Ke2 {[%clk 00:03:28]} {[%emt 00:00:03]} Kf7 {[%clk 00:06:07]} {[%emt 00:00:02]}
33. f4 {[%clk 00:03:23]} {[%emt 00:00:04]} Ke7 {[%clk 00:06:01]} {[%emt
00:00:06]} 34. Kd3 {[%clk 00:03:21]} {[%emt 00:00:02]} Kd8 {[%clk 00:05:59]}
{[%emt 00:00:02]} 35. Kc4 {[%clk 00:03:15]} {[%emt 00:00:06]} Kc7 {[%clk
00:05:54]} {[%emt 00:00:05]} 36. Kd5 {[%clk 00:03:12]} {[%emt 00:00:02]} exf4
{[%clk 00:05:45]} {[%emt 00:00:09]} 37. gxf4 {[%clk 00:03:11]} {[%emt
00:00:02]} Be3 {[%clk 00:05:42]} {[%emt 00:00:03]} 38. f5 {[%clk 00:02:58]}
{[%emt 00:00:13]} Bf4 {[%clk 00:05:40]} {[%emt 00:00:02]} 39. h3 {[%clk
00:02:52]} {[%emt 00:00:05]} g6 {[%clk 00:05:37]} {[%emt 00:00:04]} 40. Ke6
{[%clk 00:02:48]} {[%emt 00:00:03]} gxf5 {[%clk 00:05:35]} {[%emt 00:00:03]} 41.
exf5 {[%clk 00:02:30]} {[%emt 00:00:17]} Be5 {[%clk 00:05:34]} {[%emt
00:00:02]} 42. Bd5 {[%clk 00:02:20]} {[%emt 00:00:10]} Bd4 {[%clk 00:05:11]}
{[%emt 00:00:23]} 43. Kf7 {[%clk 00:02:08]} {[%emt 00:00:11]} h5 {[%clk
00:05:05]} {[%emt 00:00:07]} 44. h4 {[%clk 00:01:51]} {[%emt 00:00:16]} Bf2
{[%clk 00:04:56]} {[%emt 00:00:10]} 45. Kxf6 {[%clk 00:01:49]} {[%emt
00:00:03]} Bxh4+ {[%clk 00:04:54]} {[%emt 00:00:01]} 46. Kg6 {[%clk 00:01:47]}
{[%emt 00:00:01]} Bg3 {[%clk 00:04:48]} {[%emt 00:00:07]} 47. f6 {[%clk
00:01:46]} {[%emt 00:00:01]} h4 {[%clk 00:04:46]} {[%emt 00:00:02]} 48. f7
{[%clk 00:01:45]} {[%emt 00:00:01]} Kb6 {[%clk 00:04:39]} {[%emt 00:00:07]} 49.
Bc4 {[%clk 00:01:44]} {[%emt 00:00:01]} h3 {[%clk 00:04:38]} {[%emt 00:00:02]}
50. f8=Q {[%clk 00:01:42]} {[%emt 00:00:01]} h2 {[%clk 00:04:34]} {[%emt
00:00:03]} 51. Qh6 {[%clk 00:01:41]} {[%emt 00:00:02]} Be5 {[%clk 00:04:30]}
{[%emt 00:00:04]} 52. Qh3 {[%clk 00:01:38]} {[%emt 00:00:03]} Kc7 {[%clk
00:04:28]} {[%emt 00:00:03]} 53. Kf5 {[%clk 00:01:37]} {[%emt 00:00:01]} Kb6
{[%clk 00:04:24]} {[%emt 00:00:04]} 54. Ke4 {[%clk 00:01:35]} {[%emt 00:00:01]}
Kc7 {[%clk 00:04:21]} {[%emt 00:00:04]} 55. Kd5 {[%clk 00:01:34]} Kb6 {[%clk
00:04:15]} {[%emt 00:00:06]} 56. Ke6 {[%clk 00:01:31]} {[%emt 00:00:03]} Kc7
{[%clk 00:04:11]} {[%emt 00:00:04]} 57. Bd5 {[%clk 00:01:27]} {[%emt 00:00:04]}
Kb6 {[%clk 00:04:07]} {[%emt 00:00:04]} 58. Kd7 {[%clk 00:01:25]} Kc5 {[%clk
00:04:00]} {[%emt 00:00:07]} 59. Bh1 {[%clk 00:01:23]} {[%emt 00:00:02]} Kxb5
{[%emt 00:00:04]} 60. c7 {[%clk 00:01:22]} 1-0

[Event "Božićni turnir u VaraždinskimToplicama 26.12.2025."]
[Site "Varazdinske Toplice, Croatia"]
[Date "2025.12.26"]
[Round "9.15"]
[White "Brnadic, Grga"]
[Black "Mesar, Darko"]
[Result "1-0"]
[TimeControl "10"]
[WhiteFideId "14578999"]
[BlackFideId "14531038"]
[WhiteElo "1387"]
[BlackElo "1851"]

1. e4 {[%clk 00:09:59]} {[%emt 00:10:59]} c5 {[%clk 00:09:58]} {[%emt
00:00:03]} 2. Nc3 {[%clk 00:09:58]} {[%emt 00:00:03]} a6 {[%clk 00:09:54]}
{[%emt 00:00:02]} 3. Nge2 {[%clk 00:09:58]} Nc6 {[%clk 00:09:49]} {[%emt
00:00:04]} 4. g3 {[%clk 00:09:57]} e5 {[%clk 00:09:41]} {[%emt 00:00:08]} 5.
Bg2 {[%clk 00:09:55]} {[%emt 00:00:02]} Nf6 {[%clk 00:09:37]} {[%emt 00:00:04]}
6. O-O {[%clk 00:09:53]} {[%emt 00:00:02]} d6 {[%clk 00:09:35]} {[%emt
00:00:02]} 7. d3 {[%clk 00:09:47]} {[%emt 00:00:06]} Be7 {[%clk 00:09:33]}
{[%emt 00:00:02]} 8. f4 {[%clk 00:09:46]} exf4 {[%clk 00:09:22]} {[%emt
00:00:11]} 9. Nxf4 {[%clk 00:09:44]} {[%emt 00:00:02]} O-O {[%clk 00:09:13]}
{[%emt 00:00:09]} 10. Ncd5 {[%clk 00:09:33]} {[%emt 00:00:11]} Nxd5 {[%clk
00:08:51]} {[%emt 00:00:22]} 11. Nxd5 {[%clk 00:09:31]} {[%emt 00:00:01]} Be6
{[%clk 00:08:43]} {[%emt 00:00:09]} 12. Ne3 {[%clk 00:09:16]} {[%emt 00:00:16]}
Bf6 {[%clk 00:08:29]} {[%emt 00:00:14]} 13. c3 {[%clk 00:08:52]} {[%emt
00:00:24]} Rc8 {[%clk 00:08:24]} {[%emt 00:00:04]} 14. Nf5 {[%clk 00:08:35]}
{[%emt 00:00:16]} b5 {[%clk 00:08:05]} {[%emt 00:00:20]} 15. g4 {[%clk
00:07:26]} {[%emt 00:01:09]} g6 {[%clk 00:06:52]} {[%emt 00:01:13]} 16. Nh6+
{[%clk 00:07:04]} {[%emt 00:00:22]} Kh8 {[%clk 00:06:49]} {[%emt 00:00:03]} 17.
Qf3 {[%clk 00:06:13]} {[%emt 00:00:52]} Bg7 {[%clk 00:06:27]} {[%emt 00:00:21]}
18. g5 {[%clk 00:05:36]} {[%emt 00:00:37]} Qd7 {[%clk 00:06:04]} {[%emt
00:00:23]} 19. Bd2 {[%clk 00:05:16]} {[%emt 00:00:19]} Ne5 {[%clk 00:05:50]}
{[%emt 00:00:15]} 20. Qe2 {[%clk 00:05:16]} c4 {[%clk 00:05:38]} {[%emt
00:00:12]} 21. d4 {[%clk 00:05:05]} {[%emt 00:00:10]} Nd3 {[%clk 00:05:26]}
{[%emt 00:00:12]} 22. d5 {[%clk 00:05:04]} {[%emt 00:00:01]} Bh3 {[%clk
00:05:05]} {[%emt 00:00:21]} 23. Nxf7+ {[%clk 00:03:22]} {[%emt 00:01:42]} Kg8
{[%clk 00:04:36]} {[%emt 00:00:29]} 24. Bxh3 {[%clk 00:03:10]} {[%emt
00:00:12]} Qxh3 {[%clk 00:04:16]} {[%emt 00:00:20]} 25. Nxd6 {[%clk 00:02:46]}
{[%emt 00:00:23]} Rcd8 {[%clk 00:04:01]} {[%emt 00:00:16]} 26. Nb7 {[%clk
00:02:30]} {[%emt 00:00:16]} Rd7 {[%clk 00:03:32]} {[%emt 00:00:30]} 27. Na5
{[%clk 00:02:27]} {[%emt 00:00:02]} Rdf7 {[%clk 00:03:21]} {[%emt 00:00:11]} 28.
Qg2 {[%clk 00:02:15]} {[%emt 00:00:12]} Qd7 {[%clk 00:03:02]} {[%emt 00:00:18]}
29. Rxf7 {[%clk 00:01:55]} {[%emt 00:00:21]} Qxf7 {[%clk 00:02:52]} {[%emt
00:00:10]} 30. Rf1 {[%clk 00:01:55]} {[%emt 00:00:01]} Qa7+ {[%clk 00:02:51]}
31. Kh1 {[%clk 00:01:29]} {[%emt 00:00:26]} Nf2+ {[%clk 00:02:40]} {[%emt
00:00:11]} 32. Kg1 {[%clk 00:01:07]} {[%emt 00:00:22]} Nxe4+ {[%clk 00:02:36]}
{[%emt 00:00:04]} 33. Kh1 {[%clk 00:01:06]} {[%emt 00:00:01]} Rxf1+ {[%clk
00:02:14]} {[%emt 00:00:22]} 34. Qxf1 {[%clk 00:01:05]} {[%emt 00:00:01]} Nxd2
{[%clk 00:02:12]} {[%emt 00:00:01]} 35. Qe2 {[%clk 00:01:04]} Qc7 {[%clk
00:01:48]} {[%emt 00:00:24]} 36. Qxd2 {[%clk 00:01:00]} {[%emt 00:00:04]} Qxa5
{[%clk 00:01:46]} {[%emt 00:00:02]} 37. d6 {[%clk 00:00:59]} Qd8 {[%clk
00:01:43]} {[%emt 00:00:02]} 38. Qd5+ {[%clk 00:00:54]} {[%emt 00:00:06]} Kf8
{[%clk 00:01:32]} {[%emt 00:00:11]} 39. Qc5 {[%clk 00:00:48]} {[%emt 00:00:06]}
Qd7 {[%clk 00:01:28]} {[%emt 00:00:05]} 40. Qc7 {[%clk 00:00:43]} {[%emt
00:00:04]} Ke8 {[%clk 00:01:23]} {[%emt 00:00:05]} 41. Qc5 {[%clk 00:00:39]}
{[%emt 00:00:03]} Bf8 {[%clk 00:01:12]} {[%emt 00:00:12]} 42. Qe3+ {[%clk
00:00:38]} Kf7 {[%clk 00:01:08]} {[%emt 00:00:04]} 43. Qf3+ {[%clk 00:00:35]}
{[%emt 00:00:04]} Kg8 {[%clk 00:00:59]} {[%emt 00:00:06]} 44. Qd5+ {[%clk
00:00:34]} {[%emt 00:00:03]} Qf7 {[%clk 00:00:52]} {[%emt 00:00:07]} 45. Qd1
{[%clk 00:00:33]} {[%emt 00:00:01]} Bxd6 {[%clk 00:00:49]} {[%emt 00:00:04]} 46.
Kg2 {[%clk 00:00:32]} {[%emt 00:00:01]} Bc5 {[%clk 00:00:42]} {[%emt 00:00:07]}
47. Qd8+ {[%clk 00:00:31]} {[%emt 00:00:01]} Kg7 {[%clk 00:00:40]} 48. Qd2
{[%clk 00:00:30]} {[%emt 00:00:01]} Qb7+ {[%clk 00:00:35]} {[%emt 00:00:06]} 49.
Kf1 {[%clk 00:00:29]} Qf7+ {[%clk 00:00:33]} {[%emt 00:00:02]} 50. Kg2 {[%clk
00:00:28]} {[%emt 00:00:01]} Qf5 {[%clk 00:00:29]} {[%emt 00:00:03]} 51. h4
{[%clk 00:00:26]} {[%emt 00:00:02]} Qg4+ {[%clk 00:00:27]} {[%emt 00:00:02]} 52.
Kh2 {[%clk 00:00:24]} Qxh4+ {[%clk 00:00:25]} {[%emt 00:00:03]} 53. Kg2 {[%clk
00:00:24]} Qg4+ {[%clk 00:00:21]} {[%emt 00:00:04]} 54. Kh2 {[%clk 00:00:24]}
Qf5 {[%clk 00:00:18]} {[%emt 00:00:03]} 55. Kg2 {[%clk 00:00:23]} {[%emt
00:00:02]} Qe4+ {[%clk 00:00:16]} {[%emt 00:00:02]} 56. Kh2 {[%clk 00:00:22]}
{[%emt 00:00:01]} Qd3 {[%clk 00:00:14]} {[%emt 00:00:01]} 57. Qg2 {[%clk
00:00:19]} {[%emt 00:00:02]} Bd6+ {[%clk 00:00:12]} {[%emt 00:00:03]} 58. Kh1
{[%clk 00:00:16]} {[%emt 00:00:03]} Qd1+ {[%clk 00:00:10]} {[%emt 00:00:01]} 59.
Qg1 {[%clk 00:00:16]} {[%emt 00:00:01]} Qxg1+ {[%clk 00:00:09]} 60. Kxg1 {[%clk
00:00:16]} Kf7 {[%clk 00:00:08]} {[%emt 00:00:02]} 61. Kg2 {[%clk 00:00:15]}
Ke6 {[%clk 00:00:07]} 62. Kf3 {[%clk 00:00:15]} Kf5 {[%clk 00:00:07]} {[%emt
00:00:01]} 63. Ke2 {[%clk 00:00:15]} Kxg5 {[%clk 00:00:06]} 64. Kf2 {[%clk
00:00:14]} h5 {[%clk 00:00:05]} {[%emt 00:00:01]} 65. Kg2 {[%clk 00:00:14]} h4
{[%clk 00:00:04]} 66. Kh1 {[%clk 00:00:13]} Kg4 {[%clk 00:00:04]} 67. Kg2
{[%clk 00:00:13]} h3+ {[%clk 00:00:03]} 68. Kf1 {[%clk 00:00:12]} Kg3 {[%clk
00:00:03]} 69. Ke2 {[%clk 00:00:12]} h2 {[%clk 00:00:02]} 70. Kd2 {[%clk
00:00:11]} 1-0